[Event "Titled Tuesday Blitz January 03 Early 2023"]
[White "Bacrot, Etienne"]
[Black "Timofeev, Artyom"]
[WhiteFideId "605506"]
[BlackFideId "4140419"]
[WhiteElo "2667"]
[BlackElo "2567"]
[Result "1-0"]
[Round "08"]
[TimeControl "180+2"]
[Date "2023.01.03"]
[WhiteClock "0:00:20"]
[BlackClock "0:00:12"]

1. e4 {[%clk 0:03:00]}  c5 {[%clk 0:02:59]} 2. Nf3 {[%clk 0:03:00]}  Nc6 {[%clk 0:02:59]} 3. Bb5 {[%clk 0:03:00]}  d6 {[%clk 0:02:59]} 4. O-O {[%clk 0:03:00]}  Bd7 {[%clk 0:02:59]} 5. Re1 {[%clk 0:03:00]}  a6 {[%clk 0:02:59]} 6. Bf1 {[%clk 0:03:00]}  Bg4 {[%clk 0:02:58]} 7. h3 {[%clk 0:02:56]}  Bxf3 {[%clk 0:02:58]} 8. Qxf3 {[%clk 0:02:56]}  g6 {[%clk 0:02:58]} 9. c3 {[%clk 0:02:56]}  Bg7 {[%clk 0:02:58]} 10. d3 {[%clk 0:02:57]}  e6 {[%clk 0:02:52]} 11. a4 {[%clk 0:02:54]}  Nge7 {[%clk 0:02:52]} 12. Bg5 {[%clk 0:02:54]}  O-O {[%clk 0:02:51]} 13. Nd2 {[%clk 0:02:53]}  h6 {[%clk 0:02:50]} 14. Be3 {[%clk 0:02:52]}  b5 {[%clk 0:02:42]} 15. axb5 {[%clk 0:02:46]}  axb5 {[%clk 0:02:42]} 16. Qd1 {[%clk 0:02:26]}  b4 {[%clk 0:02:39]} 17. Qc2 {[%clk 0:02:25]}  Qc7 {[%clk 0:02:25]} 18. Nf3 {[%clk 0:02:19]}  Qb6 {[%clk 0:02:15]} 19. Qd2 {[%clk 0:02:16]}  Kh7 {[%clk 0:02:15]} 20. d4 {[%clk 0:02:16]}  cxd4 {[%clk 0:02:01]} 21. cxd4 {[%clk 0:02:15]}  d5 {[%clk 0:02:01]} 22. e5 {[%clk 0:02:01]}  Nf5 {[%clk 0:02:01]} 23. Bd3 {[%clk 0:02:01]}  Nxe3 {[%clk 0:01:49]} 24. Qxe3 {[%clk 0:01:54]}  Kg8 {[%clk 0:01:43]} 25. h4 {[%clk 0:01:49]}  h5 {[%clk 0:01:43]} 26. Qf4 {[%clk 0:01:46]}  b3 {[%clk 0:01:40]} 27. Rxa8 {[%clk 0:01:32]}  Rxa8 {[%clk 0:01:39]} 28. Rc1 {[%clk 0:01:32]}  Rf8 {[%clk 0:01:16]} 29. Rc3 {[%clk 0:01:24]}  Nb4 {[%clk 0:00:48]} 30. Qe3 {[%clk 0:00:48]}  Qa5 {[%clk 0:00:45]} 31. Rxb3 {[%clk 0:00:44]}  Rc8 {[%clk 0:00:39]} 32. Kh2 {[%clk 0:00:42]}  Nxd3 {[%clk 0:00:32]} 33. Qxd3 {[%clk 0:00:38]}  Bh6 {[%clk 0:00:32]} 34. Rc3 {[%clk 0:00:34]}  Rb8 {[%clk 0:00:31]} 35. Qc2 {[%clk 0:00:34]}  Kg7 {[%clk 0:00:25]} 36. b3 {[%clk 0:00:30]}  Qb6 {[%clk 0:00:24]} 37. g3 {[%clk 0:00:29]}  Qb4 {[%clk 0:00:23]} 38. Kg2 {[%clk 0:00:28]}  Rb7 {[%clk 0:00:20]} 39. Qd3 {[%clk 0:00:27]}  Qb6 {[%clk 0:00:19]} 40. Ne1 {[%clk 0:00:26]}  Ra7 {[%clk 0:00:18]} 41. Nc2 {[%clk 0:00:25]}  Ra2 {[%clk 0:00:17]} 42. b4 {[%clk 0:00:25]}  Kg8 {[%clk 0:00:16]} 43. Rc8+ {[%clk 0:00:25]}  Bf8 {[%clk 0:00:15]} 44. Qc3 {[%clk 0:00:23]}  Qb7 {[%clk 0:00:12]} 45. Qc5 {[%clk 0:00:20]} 1-0


[Site "https://www.chess.com"]

[Event "Titled Tuesday Blitz January 03 Early 2023"]
[White "Kamsky, Gata"]
[Black "Harshavardhan G B"]
[WhiteFideId "2000024"]
[BlackFideId "25059009"]
[WhiteElo "2665"]
[BlackElo "2408"]
[Result "0-1"]
[Round "08"]
[TimeControl "180+2"]
[Date "2023.01.03"]
[WhiteClock "0:00:03"]
[BlackClock "0:00:04"]

1. d4 {[%clk 0:03:00]}  Nf6 {[%clk 0:02:59]} 2. Nf3 {[%clk 0:02:59]}  c5 {[%clk 0:02:59]} 3. d5 {[%clk 0:02:58]}  d6 {[%clk 0:02:58]} 4. Nc3 {[%clk 0:02:57]}  g6 {[%clk 0:02:54]} 5. e4 {[%clk 0:02:54]}  Bg7 {[%clk 0:02:54]} 6. Be2 {[%clk 0:02:51]}  O-O {[%clk 0:02:55]} 7. O-O {[%clk 0:02:49]}  e5 {[%clk 0:02:46]} 8. Nd2 {[%clk 0:02:44]}  Ne8 {[%clk 0:02:42]} 9. Nc4 {[%clk 0:02:43]}  f5 {[%clk 0:02:42]} 10. f4 {[%clk 0:02:43]}  Nd7 {[%clk 0:02:40]} 11. a4 {[%clk 0:02:40]}  Qe7 {[%clk 0:02:39]} 12. Bd3 {[%clk 0:02:34]}  exf4 {[%clk 0:02:02]} 13. Rxf4 {[%clk 0:02:16]}  Ne5 {[%clk 0:01:58]} 14. exf5 {[%clk 0:02:13]}  Nxd3 {[%clk 0:01:57]} 15. cxd3 {[%clk 0:02:00]}  Bxf5 {[%clk 0:01:57]} 16. Be3 {[%clk 0:01:42]}  Nf6 {[%clk 0:01:56]} 17. g4 {[%clk 0:01:32]}  Bd7 {[%clk 0:01:51]} 18. h3 {[%clk 0:01:25]}  Rae8 {[%clk 0:00:58]} 19. Qd2 {[%clk 0:01:12]}  h5 {[%clk 0:00:54]} 20. g5 {[%clk 0:01:06]}  Nh7 {[%clk 0:00:53]} 21. h4 {[%clk 0:01:00]}  Rxf4 {[%clk 0:00:52]} 22. Bxf4 {[%clk 0:01:00]}  Bd4+ {[%clk 0:00:53]} 23. Kh2 {[%clk 0:00:49]}  Bg4 {[%clk 0:00:45]} 24. Ne4 {[%clk 0:00:47]}  Kg7 {[%clk 0:00:38]} 25. Re1 {[%clk 0:00:43]}  Nf8 {[%clk 0:00:33]} 26. Bg3 {[%clk 0:00:41]}  Nd7 {[%clk 0:00:12]} 27. Nexd6 {[%clk 0:00:31]}  Qe2+ {[%clk 0:00:12]} 28. Rxe2 {[%clk 0:00:30]}  Rxe2+ {[%clk 0:00:13]} 29. Qxe2 {[%clk 0:00:24]}  Bxe2 {[%clk 0:00:14]} 30. Nxb7 {[%clk 0:00:23]}  Bxd3 {[%clk 0:00:14]} 31. Nbd6 {[%clk 0:00:22]}  Nb6 {[%clk 0:00:13]} 32. Nxb6 {[%clk 0:00:21]}  axb6 {[%clk 0:00:14]} 33. b3 {[%clk 0:00:16]}  Bc2 {[%clk 0:00:13]} 34. Nc4 {[%clk 0:00:13]}  Bxb3 {[%clk 0:00:13]} 35. d6 {[%clk 0:00:13]}  Kf7 {[%clk 0:00:13]} 36. d7 {[%clk 0:00:12]}  Ke7 {[%clk 0:00:13]} 37. Nxb6 {[%clk 0:00:13]}  Be6 {[%clk 0:00:13]} 38. a5 {[%clk 0:00:10]}  Bxd7 {[%clk 0:00:13]} 39. a6 {[%clk 0:00:10]}  Bc6 {[%clk 0:00:13]} 40. a7 {[%clk 0:00:10]}  c4 {[%clk 0:00:13]} 41. Nxc4 {[%clk 0:00:10]}  Bxa7 {[%clk 0:00:13]} 42. Ne5 {[%clk 0:00:08]}  Be4 {[%clk 0:00:12]} 43. Nc4 {[%clk 0:00:06]}  Ke6 {[%clk 0:00:12]} 44. Nd2 {[%clk 0:00:06]}  Bf5 {[%clk 0:00:12]} 45. Bf4 {[%clk 0:00:06]}  Kd5 {[%clk 0:00:12]} 46. Kg3 {[%clk 0:00:07]}  Bd4 {[%clk 0:00:12]} 47. Nf3 {[%clk 0:00:07]}  Bc3 {[%clk 0:00:12]} 48. Be3 {[%clk 0:00:06]}  Ke4 {[%clk 0:00:12]} 49. Bf4 {[%clk 0:00:07]}  Kd3 {[%clk 0:00:11]} 50. Ne5+ {[%clk 0:00:06]}  Ke2 {[%clk 0:00:11]} 51. Nf3 {[%clk 0:00:05]}  Be4 {[%clk 0:00:11]} 52. Ng1+ {[%clk 0:00:05]}  Kf1 {[%clk 0:00:08]} 53. Nf3 {[%clk 0:00:06]}  Bd5 {[%clk 0:00:07]} 54. Bd2 {[%clk 0:00:05]}  Bg7 {[%clk 0:00:05]} 55. Bf4 {[%clk 0:00:05]}  Bf8 {[%clk 0:00:05]} 56. Be5 {[%clk 0:00:05]}  Bc5 {[%clk 0:00:05]} 57. Bd4 {[%clk 0:00:05]}  Bb4 {[%clk 0:00:05]} 58. Ne5 {[%clk 0:00:04]}  Be4 {[%clk 0:00:04]} 59. Kf4 {[%clk 0:00:05]}  Bf5 {[%clk 0:00:04]} 60. Nf3 {[%clk 0:00:04]}  Kg2 {[%clk 0:00:04]} 61. Be5 {[%clk 0:00:04]}  Bc5 {[%clk 0:00:03]} 62. Bf6 {[%clk 0:00:03]}  Ba3 {[%clk 0:00:04]} 63. Be5 {[%clk 0:00:03]}  Bc1+ {[%clk 0:00:04]} 0-1


[Site "https://www.chess.com"]

[Event "Titled Tuesday Blitz January 03 Early 2023"]
[White "Lenderman, Aleksandr"]
[Black "Tatarinov, Dmitry"]
[WhiteFideId "2021285"]
[BlackFideId "24160067"]
[WhiteElo "2572"]
[BlackElo "2310"]
[Result "1-0"]
[Round "08"]
[TimeControl "180+2"]
[Date "2023.01.03"]
[WhiteClock "0:01:03"]
[BlackClock "0:00:12"]

1. d4 {[%clk 0:02:40]}  Nf6 {[%clk 0:02:59]} 2. c4 {[%clk 0:02:40]}  c6 {[%clk 0:03:00]} 3. Bf4 {[%clk 0:02:39]}  d5 {[%clk 0:03:00]} 4. e3 {[%clk 0:02:38]}  e6 {[%clk 0:02:48]} 5. Nc3 {[%clk 0:02:38]}  Bb4 {[%clk 0:02:47]} 6. Bd3 {[%clk 0:02:36]}  Qa5 {[%clk 0:02:41]} 7. Ne2 {[%clk 0:02:34]}  Nbd7 {[%clk 0:02:40]} 8. O-O {[%clk 0:02:32]}  dxc4 {[%clk 0:02:39]} 9. Bxc4 {[%clk 0:02:32]}  e5 {[%clk 0:02:39]} 10. dxe5 {[%clk 0:02:18]}  Nxe5 {[%clk 0:02:39]} 11. Bxe5 {[%clk 0:02:17]}  Qxe5 {[%clk 0:02:38]} 12. Bxf7+ {[%clk 0:02:16]}  Kxf7 {[%clk 0:02:36]} 13. Qb3+ {[%clk 0:02:15]}  Be6 {[%clk 0:02:10]} 14. Qxb4 {[%clk 0:02:14]}  b6 {[%clk 0:02:11]} 15. Qf4 {[%clk 0:02:12]}  Qxf4 {[%clk 0:02:08]} 16. Nxf4 {[%clk 0:02:13]}  Rhd8 {[%clk 0:02:07]} 17. Rfd1 {[%clk 0:02:13]}  c5 {[%clk 0:01:58]} 18. e4 {[%clk 0:02:11]}  Ng4 {[%clk 0:01:54]} 19. Nfd5 {[%clk 0:01:52]}  Ne5 {[%clk 0:01:50]} 20. f4 {[%clk 0:01:51]}  Nc4 {[%clk 0:01:48]} 21. b3 {[%clk 0:01:50]}  Bxd5 {[%clk 0:01:39]} 22. Nxd5 {[%clk 0:01:50]}  Nd6 {[%clk 0:01:38]} 23. Nc3 {[%clk 0:01:51]}  Rac8 {[%clk 0:01:20]} 24. Kf2 {[%clk 0:01:47]}  h5 {[%clk 0:01:10]} 25. Kf3 {[%clk 0:01:43]}  b5 {[%clk 0:01:10]} 26. e5 {[%clk 0:01:40]}  b4 {[%clk 0:01:01]} 27. exd6 {[%clk 0:01:37]}  bxc3 {[%clk 0:01:01]} 28. Rac1 {[%clk 0:01:37]}  Ke6 {[%clk 0:00:59]} 29. Rxc3 {[%clk 0:01:32]}  Rxd6 {[%clk 0:00:59]} 30. Re3+ {[%clk 0:01:31]}  Kd7 {[%clk 0:00:59]} 31. Rxd6+ {[%clk 0:01:31]}  Kxd6 {[%clk 0:00:59]} 32. Re5 {[%clk 0:01:31]}  Rc6 {[%clk 0:00:49]} 33. Rg5 {[%clk 0:01:26]}  Rc7 {[%clk 0:00:27]} 34. Rxh5 {[%clk 0:01:23]}  Kc6 {[%clk 0:00:28]} 35. Rg5 {[%clk 0:01:20]}  Kb5 {[%clk 0:00:28]} 36. Rg6 {[%clk 0:01:15]}  a5 {[%clk 0:00:24]} 37. a4+ {[%clk 0:01:10]}  Kb4 {[%clk 0:00:23]} 38. Rb6+ {[%clk 0:01:10]}  Ka3 {[%clk 0:00:22]} 39. Rb5 {[%clk 0:01:10]}  c4 {[%clk 0:00:21]} 40. bxc4 {[%clk 0:01:10]}  Kxa4 {[%clk 0:00:22]} 41. h4 {[%clk 0:01:08]}  Rxc4 {[%clk 0:00:21]} 42. Rb7 {[%clk 0:01:09]}  g6 {[%clk 0:00:19]} 43. Rb6 {[%clk 0:01:08]}  Rc3+ {[%clk 0:00:13]} 44. Kg4 {[%clk 0:01:08]}  Rc2 {[%clk 0:00:13]} 45. g3 {[%clk 0:01:07]}  Rc5 {[%clk 0:00:10]} 46. Rxg6 {[%clk 0:01:06]}  Kb5 {[%clk 0:00:11]} 47. Rg8 {[%clk 0:01:02]}  a4 {[%clk 0:00:10]} 48. Rb8+ {[%clk 0:01:01]}  Kc4 {[%clk 0:00:09]} 49. Ra8 {[%clk 0:01:01]}  Kb4 {[%clk 0:00:09]} 50. h5 {[%clk 0:01:01]}  Ra5 {[%clk 0:00:10]} 51. Rxa5 {[%clk 0:01:01]}  Kxa5 {[%clk 0:00:10]} 52. h6 {[%clk 0:01:02]}  a3 {[%clk 0:00:11]} 53. h7 {[%clk 0:01:02]}  a2 {[%clk 0:00:11]} 54. h8=Q {[%clk 0:01:03]}  a1=Q {[%clk 0:00:12]} 55. Qxa1+ {[%clk 0:01:03]} 1-0


[Site "https://www.chess.com"]

[Event "Titled Tuesday Blitz January 03 Early 2023"]
[White "Khoroshev, Nikita"]
[Black "Terry, Renato"]
[WhiteFideId "14200287"]
[BlackFideId "3803457"]
[WhiteElo "2336"]
[BlackElo "2520"]
[Result "0-1"]
[Round "08"]
[TimeControl "180+2"]
[Date "2023.01.03"]
[WhiteClock "0:01:00"]
[BlackClock "0:01:39"]

1. e4 {[%clk 0:03:00]}  e6 {[%clk 0:02:59]} 2. d4 {[%clk 0:03:00]}  d5 {[%clk 0:03:00]} 3. Nc3 {[%clk 0:03:01]}  Nf6 {[%clk 0:03:00]} 4. Bg5 {[%clk 0:03:00]}  Bb4 {[%clk 0:03:00]} 5. e5 {[%clk 0:02:59]}  h6 {[%clk 0:03:01]} 6. Bd2 {[%clk 0:02:57]}  Bxc3 {[%clk 0:03:01]} 7. bxc3 {[%clk 0:02:57]}  Ne4 {[%clk 0:03:01]} 8. Qg4 {[%clk 0:02:51]}  g6 {[%clk 0:03:01]} 9. Bd3 {[%clk 0:02:50]}  Nxd2 {[%clk 0:03:01]} 10. Kxd2 {[%clk 0:02:51]}  c5 {[%clk 0:03:01]} 11. Nf3 {[%clk 0:02:49]}  Nc6 {[%clk 0:03:01]} 12. h4 {[%clk 0:02:40]}  cxd4 {[%clk 0:03:01]} 13. cxd4 {[%clk 0:02:39]}  Qa5+ {[%clk 0:03:01]} 14. Ke2 {[%clk 0:02:37]}  b6 {[%clk 0:03:00]} 15. a3 {[%clk 0:02:35]}  Ba6 {[%clk 0:02:59]} 16. Qf4 {[%clk 0:02:31]}  Rc8 {[%clk 0:02:58]} 17. Rhc1 {[%clk 0:02:18]}  Ne7 {[%clk 0:02:54]} 18. Qd2 {[%clk 0:02:14]}  Qa4 {[%clk 0:02:50]} 19. Ke1 {[%clk 0:02:07]}  Nc6 {[%clk 0:02:46]} 20. Rab1 {[%clk 0:01:58]}  Bc4 {[%clk 0:02:26]} 21. c3 {[%clk 0:01:49]}  Bxd3 {[%clk 0:02:21]} 22. Qxd3 {[%clk 0:01:49]}  Na5 {[%clk 0:02:21]} 23. Nd2 {[%clk 0:01:45]}  Qxa3 {[%clk 0:02:17]} 24. Ra1 {[%clk 0:01:40]}  Qe7 {[%clk 0:02:14]} 25. g3 {[%clk 0:01:40]}  O-O {[%clk 0:02:10]} 26. f4 {[%clk 0:01:26]}  f5 {[%clk 0:01:57]} 27. exf6 {[%clk 0:01:25]}  Qxf6 {[%clk 0:01:57]} 28. Ke2 {[%clk 0:01:23]}  Qf5 {[%clk 0:01:58]} 29. Nf3 {[%clk 0:01:16]}  Nb3 {[%clk 0:01:56]} 30. Ne5 {[%clk 0:01:09]}  Nxc1+ {[%clk 0:01:52]} 31. Rxc1 {[%clk 0:01:09]}  Qxd3+ {[%clk 0:01:49]} 32. Kxd3 {[%clk 0:01:10]}  Kg7 {[%clk 0:01:50]} 33. Ra1 {[%clk 0:01:09]}  Rc7 {[%clk 0:01:51]} 34. Ra3 {[%clk 0:01:07]}  a5 {[%clk 0:01:46]} 35. Rb3 {[%clk 0:01:06]}  Rb8 {[%clk 0:01:46]} 36. g4 {[%clk 0:01:06]}  a4 {[%clk 0:01:43]} 37. Ra3 {[%clk 0:01:05]}  b5 {[%clk 0:01:44]} 38. Ke3 {[%clk 0:01:05]}  b4 {[%clk 0:01:43]} 39. cxb4 {[%clk 0:01:04]}  Rxb4 {[%clk 0:01:44]} 40. Nd3 {[%clk 0:01:02]}  Rb3 {[%clk 0:01:44]} 41. Rxa4 {[%clk 0:01:00]}  Rcc3 {[%clk 0:01:44]} 42. Ra7+ {[%clk 0:01:00]}  Kf8 {[%clk 0:01:39]} 0-1


[Site "https://www.chess.com"]

[Event "Titled Tuesday Blitz January 03 Early 2023"]
[White "Jobava, Baadur"]
[Black "Avila Pavas, Santiago"]
[WhiteFideId "13601520"]
[BlackFideId "4437128"]
[WhiteElo "2578"]
[BlackElo "2522"]
[Result "0-1"]
[Round "08"]
[TimeControl "180+2"]
[Date "2023.01.03"]
[WhiteClock "0:00:08"]
[BlackClock "0:00:06"]

1. e4 {[%clk 0:03:00]}  Nf6 {[%clk 0:03:00]} 2. e5 {[%clk 0:02:59]}  Nd5 {[%clk 0:03:01]} 3. Nc3 {[%clk 0:03:00]}  Nxc3 {[%clk 0:03:01]} 4. dxc3 {[%clk 0:03:01]}  d6 {[%clk 0:03:02]} 5. exd6 {[%clk 0:03:00]}  cxd6 {[%clk 0:03:02]} 6. Be3 {[%clk 0:03:00]}  Nc6 {[%clk 0:03:02]} 7. Qd2 {[%clk 0:03:01]}  g6 {[%clk 0:03:02]} 8. O-O-O {[%clk 0:03:01]}  Be6 {[%clk 0:02:58]} 9. a3 {[%clk 0:03:00]}  Qa5 {[%clk 0:02:57]} 10. Nf3 {[%clk 0:03:00]}  h6 {[%clk 0:02:56]} 11. Nd4 {[%clk 0:02:56]}  Bd7 {[%clk 0:02:52]} 12. Nxc6 {[%clk 0:02:44]}  Bxc6 {[%clk 0:02:50]} 13. f3 {[%clk 0:02:39]}  Bg7 {[%clk 0:02:48]} 14. Bc4 {[%clk 0:02:38]}  O-O-O {[%clk 0:02:33]} 15. Bxf7 {[%clk 0:02:23]}  Qf5 {[%clk 0:02:32]} 16. Bd5 {[%clk 0:02:17]}  Kb8 {[%clk 0:02:18]} 17. Rhe1 {[%clk 0:02:14]}  Rhe8 {[%clk 0:02:10]} 18. Bxc6 {[%clk 0:02:06]}  bxc6 {[%clk 0:02:11]} 19. Bxh6 {[%clk 0:02:06]}  Bf6 {[%clk 0:02:08]} 20. Be3 {[%clk 0:01:47]}  e5 {[%clk 0:02:07]} 21. Qf2 {[%clk 0:01:43]}  Rd7 {[%clk 0:01:59]} 22. Rd2 {[%clk 0:01:31]}  d5 {[%clk 0:01:58]} 23. Red1 {[%clk 0:01:30]}  Red8 {[%clk 0:01:58]} 24. Kb1 {[%clk 0:01:23]}  Rb7 {[%clk 0:01:56]} 25. Ka1 {[%clk 0:01:17]}  Ka8 {[%clk 0:01:53]} 26. Bc5 {[%clk 0:01:08]}  Rdb8 {[%clk 0:01:52]} 27. Bd6 {[%clk 0:01:05]}  Rd8 {[%clk 0:01:30]} 28. Bb4 {[%clk 0:01:05]}  Rdb8 {[%clk 0:01:13]} 29. Qc5 {[%clk 0:01:01]}  Qc8 {[%clk 0:01:09]} 30. Qd6 {[%clk 0:00:56]}  Bh8 {[%clk 0:00:58]} 31. Qxg6 {[%clk 0:00:47]}  e4 {[%clk 0:00:56]} 32. fxe4 {[%clk 0:00:38]}  a5 {[%clk 0:00:55]} 33. exd5 {[%clk 0:00:38]}  axb4 {[%clk 0:00:54]} 34. dxc6 {[%clk 0:00:38]}  bxc3 {[%clk 0:00:43]} 35. cxb7+ {[%clk 0:00:38]}  Qxb7 {[%clk 0:00:44]} 36. b4 {[%clk 0:00:27]}  cxd2+ {[%clk 0:00:42]} 37. Kb1 {[%clk 0:00:27]}  Rd8 {[%clk 0:00:28]} 38. Qg5 {[%clk 0:00:27]}  Qd7 {[%clk 0:00:28]} 39. Qc5 {[%clk 0:00:20]}  Qg7 {[%clk 0:00:18]} 40. c3 {[%clk 0:00:20]}  Qg6+ {[%clk 0:00:14]} 41. Kb2 {[%clk 0:00:20]}  Qf6 {[%clk 0:00:13]} 42. g3 {[%clk 0:00:16]}  Kb7 {[%clk 0:00:13]} 43. a4 {[%clk 0:00:11]}  Rc8 {[%clk 0:00:13]} 44. Qd5+ {[%clk 0:00:12]}  Kb8 {[%clk 0:00:12]} 45. Qb5+ {[%clk 0:00:11]}  Ka7 {[%clk 0:00:12]} 46. Qa5+ {[%clk 0:00:12]}  Kb7 {[%clk 0:00:12]} 47. Qd5+ {[%clk 0:00:12]}  Kb8 {[%clk 0:00:13]} 48. Qxd2 {[%clk 0:00:09]}  Rxc3 {[%clk 0:00:10]} 49. Ka2 {[%clk 0:00:07]}  Qe6+ {[%clk 0:00:05]} 50. Qd5 {[%clk 0:00:08]}  Qe2+ {[%clk 0:00:05]} 51. Rd2 {[%clk 0:00:07]}  Rc2+ {[%clk 0:00:05]} 52. Kb3 {[%clk 0:00:07]}  Rxd2 {[%clk 0:00:04]} 53. Qg8+ {[%clk 0:00:07]}  Kc7 {[%clk 0:00:05]} 54. Qh7+ {[%clk 0:00:07]}  Rd7 {[%clk 0:00:05]} 55. Qxh8 {[%clk 0:00:08]}  Rd3+ {[%clk 0:00:05]} 56. Kc4 {[%clk 0:00:08]}  Rd8+ {[%clk 0:00:05]} 57. Kc5 {[%clk 0:00:08]}  Rxh8 {[%clk 0:00:06]} 0-1


[Site "https://www.chess.com"]

[Event "Titled Tuesday Blitz January 03 Early 2023"]
[White "Rozman, Levy"]
[Black "Narayanan.S.L"]
[WhiteFideId "2039877"]
[BlackFideId "5058422"]
[WhiteElo "2322"]
[BlackElo "2660"]
[Result "0-1"]
[Round "08"]
[TimeControl "180+2"]
[Date "2023.01.03"]
[WhiteClock "0:00:02"]
[BlackClock "0:01:07"]

1. d4 {[%clk 0:03:00]}  Nf6 {[%clk 0:02:58]} 2. Bg5 {[%clk 0:03:01]}  d5 {[%clk 0:02:57]} 3. Nd2 {[%clk 0:03:01]}  c5 {[%clk 0:02:56]} 4. e3 {[%clk 0:03:01]}  cxd4 {[%clk 0:02:56]} 5. exd4 {[%clk 0:03:01]}  Nc6 {[%clk 0:02:56]} 6. c3 {[%clk 0:03:02]}  Bf5 {[%clk 0:02:56]} 7. Qb3 {[%clk 0:03:00]}  Qd7 {[%clk 0:02:52]} 8. Ngf3 {[%clk 0:02:58]}  e6 {[%clk 0:02:53]} 9. Ne5 {[%clk 0:02:58]}  Qc8 {[%clk 0:02:53]} 10. Bb5 {[%clk 0:02:41]}  Bd6 {[%clk 0:02:49]} 11. Bf4 {[%clk 0:02:27]}  Qc7 {[%clk 0:02:41]} 12. Nxc6 {[%clk 0:02:17]}  bxc6 {[%clk 0:02:41]} 13. Bxd6 {[%clk 0:02:16]}  Qxd6 {[%clk 0:02:41]} 14. Qb4 {[%clk 0:02:09]}  Ke7 {[%clk 0:02:23]} 15. Bxc6 {[%clk 0:02:01]}  Rab8 {[%clk 0:02:24]} 16. Qa4 {[%clk 0:01:43]}  Rhc8 {[%clk 0:02:19]} 17. Bb5 {[%clk 0:01:29]}  Qb6 {[%clk 0:02:12]} 18. Qa3+ {[%clk 0:01:27]}  Qd6 {[%clk 0:02:09]} 19. Qa4 {[%clk 0:00:54]}  Kf8 {[%clk 0:02:04]} 20. Nb3 {[%clk 0:00:43]}  Kg8 {[%clk 0:02:03]} 21. Be2 {[%clk 0:00:39]}  h5 {[%clk 0:01:52]} 22. h3 {[%clk 0:00:38]}  g5 {[%clk 0:01:49]} 23. O-O {[%clk 0:00:31]}  Kg7 {[%clk 0:01:49]} 24. Qa6 {[%clk 0:00:26]}  Qf4 {[%clk 0:01:47]} 25. g3 {[%clk 0:00:20]}  Qc7 {[%clk 0:01:47]} 26. Kg2 {[%clk 0:00:18]}  Ne4 {[%clk 0:01:48]} 27. Rae1 {[%clk 0:00:14]}  Rb6 {[%clk 0:01:43]} 28. Qa5 {[%clk 0:00:14]}  h4 {[%clk 0:01:35]} 29. g4 {[%clk 0:00:13]}  Bg6 {[%clk 0:01:35]} 30. Bf3 {[%clk 0:00:11]}  f5 {[%clk 0:01:34]} 31. Qa3 {[%clk 0:00:09]}  Rf8 {[%clk 0:01:30]} 32. Re2 {[%clk 0:00:08]}  fxg4 {[%clk 0:01:29]} 33. Bxg4 {[%clk 0:00:07]}  Bf5 {[%clk 0:01:07]} 34. Nc5 {[%clk 0:00:03]}  Bxg4 {[%clk 0:01:06]} 35. hxg4 {[%clk 0:00:03]}  h3+ {[%clk 0:01:06]} 36. Kg1 {[%clk 0:00:01]}  h2+ {[%clk 0:01:04]} 37. Kg2 {[%clk 0:00:01]}  Rxf2+ {[%clk 0:01:05]} 38. Rexf2 {[%clk 0:00:01]}  Qg3+ {[%clk 0:01:05]} 39. Kh1 {[%clk 0:00:02]}  Nxf2+ {[%clk 0:01:06]} 40. Rxf2 {[%clk 0:00:02]}  Qg1# {[%clk 0:01:07]} 0-1


[Site "https://www.chess.com"]

[Event "Titled Tuesday Blitz January 03 Early 2023"]
[White "Rostomyan, Mikayel"]
[Black "Dardha, Daniel"]
[WhiteFideId "13313754"]
[BlackFideId "240990"]
[WhiteElo "2222"]
[BlackElo "2631"]
[Result "0-1"]
[Round "08"]
[TimeControl "180+2"]
[Date "2023.01.03"]
[WhiteClock "0:00:04"]
[BlackClock "0:01:15"]

1. d4 {[%clk 0:03:00]}  Nf6 {[%clk 0:02:44]} 2. Nf3 {[%clk 0:02:59]}  e6 {[%clk 0:02:42]} 3. c4 {[%clk 0:02:59]}  d5 {[%clk 0:02:41]} 4. g3 {[%clk 0:02:59]}  Be7 {[%clk 0:02:37]} 5. Bg2 {[%clk 0:02:59]}  O-O {[%clk 0:02:38]} 6. O-O {[%clk 0:02:59]}  c6 {[%clk 0:02:38]} 7. b3 {[%clk 0:02:58]}  b6 {[%clk 0:02:34]} 8. Bb2 {[%clk 0:02:56]}  a5 {[%clk 0:02:33]} 9. Nfd2 {[%clk 0:02:56]}  b5 {[%clk 0:02:26]} 10. e4 {[%clk 0:02:52]}  bxc4 {[%clk 0:02:25]} 11. bxc4 {[%clk 0:02:50]}  Ba6 {[%clk 0:02:25]} 12. Qc2 {[%clk 0:01:18]}  Nbd7 {[%clk 0:02:17]} 13. Nc3 {[%clk 0:01:08]}  Rb8 {[%clk 0:02:05]} 14. Rfd1 {[%clk 0:01:03]}  Nb6 {[%clk 0:01:55]} 15. cxd5 {[%clk 0:00:35]}  cxd5 {[%clk 0:01:48]} 16. Rab1 {[%clk 0:00:34]}  dxe4 {[%clk 0:01:46]} 17. Ndxe4 {[%clk 0:00:33]}  Nxe4 {[%clk 0:01:44]} 18. Nxe4 {[%clk 0:00:32]}  Bb7 {[%clk 0:01:42]} 19. Qe2 {[%clk 0:00:20]}  Bd5 {[%clk 0:01:40]} 20. Nc5 {[%clk 0:00:19]}  Bxa2 {[%clk 0:01:37]} 21. Ra1 {[%clk 0:00:19]}  Bd5 {[%clk 0:01:38]} 22. Bxd5 {[%clk 0:00:13]}  Nxd5 {[%clk 0:01:33]} 23. Ba3 {[%clk 0:00:13]}  Nc3 {[%clk 0:01:32]} 24. Qc4 {[%clk 0:00:09]}  Nxd1 {[%clk 0:01:32]} 25. Rxd1 {[%clk 0:00:10]}  Bxc5 {[%clk 0:01:31]} 26. Bxc5 {[%clk 0:00:10]}  Re8 {[%clk 0:01:30]} 27. h4 {[%clk 0:00:10]}  Qd5 {[%clk 0:01:26]} 28. Qa4 {[%clk 0:00:11]}  Qb3 {[%clk 0:01:22]} 29. Qa1 {[%clk 0:00:08]}  a4 {[%clk 0:01:23]} 30. Re1 {[%clk 0:00:05]}  Ra8 {[%clk 0:01:22]} 31. Ba3 {[%clk 0:00:05]}  h6 {[%clk 0:01:20]} 32. Re3 {[%clk 0:00:04]}  Qb7 {[%clk 0:01:18]} 33. Re1 {[%clk 0:00:04]}  Rab8 {[%clk 0:01:17]} 34. Bc5 {[%clk 0:00:04]}  Qc6 {[%clk 0:01:16]} 35. Rd1 {[%clk 0:00:03]}  Rb3 {[%clk 0:01:16]} 36. Ba3 {[%clk 0:00:02]}  Reb8 {[%clk 0:01:16]} 37. Bc1 {[%clk 0:00:02]}  Rb1 {[%clk 0:01:16]} 38. Qa3 {[%clk 0:00:03]}  Qc2 {[%clk 0:01:15]} 39. Rf1 {[%clk 0:00:03]}  Rc8 {[%clk 0:01:15]} 40. Be3 {[%clk 0:00:02]}  Rxf1+ {[%clk 0:01:16]} 41. Kxf1 {[%clk 0:00:02]}  Qb3 {[%clk 0:01:16]} 42. Qe7 {[%clk 0:00:02]}  a3 {[%clk 0:01:16]} 43. Bxh6 {[%clk 0:00:03]}  a2 {[%clk 0:01:15]} 44. Qg5 {[%clk 0:00:03]}  a1=Q+ {[%clk 0:01:13]} 45. Kg2 {[%clk 0:00:04]}  Qd5+ {[%clk 0:01:14]} 46. f3 {[%clk 0:00:04]}  Qxg5 {[%clk 0:01:14]} 47. Bxg5 {[%clk 0:00:04]}  Qa2+ {[%clk 0:01:15]} 0-1


[Site "https://www.chess.com"]